bitfinex-derivatives/quotes_SOLF0:USTF0_20240908
["timestamp","ask_amount","ask_price","bid_price","bid_amount"]
[1725814996690,3.1244,128.03,128.01,8.41]
[1725814998193,3.1246,128.02,128.01,8.41]
[1725814998590,3.124,128.05,128.01,8.41]
[1725814998794,9.7956,128.06,128.01,8.41]
[1725814999197,3.1243,128.04,128.01,8.41]
[1725815000191,1.3856,128.06,128.02,8.41]
[1725815000394,3.124,128.05,128.02,8.41]
[1725815001785,3.124,128.05,128.0,2.701]
[1725815001786,8.41,128.08,128.03,8.41]
[1725815002392,3.1238,128.06,128.03,8.41]
[1725815003898,3.1239,128.05,128.03,8.41]
[1725815007301,3.1237,128.06,128.04,8.41]
[1725815008400,3.1234,128.07,128.04,8.41]
[1725815008699,3.1234,128.07,128.05,8.41]
[1725815008900,12.30652479,128.09,128.03,8.41]
[1725815009098,8.41,128.09,128.03,8.41]
[1725815009696,3.1236,128.07,128.03,8.41]
[1725815009903,3.89470281,128.08,128.03,8.41]
[1725815010309,3.1237,128.06,128.03,8.41]
[1725815011504,8.41,128.07,128.02,8.41]
[1725815011699,8.41,128.06,128.0,11.111]
[1725815011902,3.82722799,128.05,128.0,11.111]
[1725815012210,3.1244,128.03,128.0,11.111]
[1725815013291,3.1243,128.04,128.02,8.41]
[1725815013805,3.1243,128.04,128.03,8.41]
[1725815014305,3.1239,128.06,128.03,8.41]
[1725815014493,3.1239,128.06,128.04,8.41]
[1725815017105,3.1239,128.06,128.04,9.8037]
[1725815017602,3.1239,128.06,128.04,1.3937]
[1725815019220,3.1241,128.05,128.03,8.41]
[1725815019514,8.41,128.08,128.02,8.41]
[1725815020012,3.1241,128.05,128.02,8.41]
[1725815022208,3.1242,128.04,128.02,8.41]
[1725815029012,3.1242,128.04,128.03,8.41]
[1725815031715,3.81737228,128.1,128.03,8.41]
[1725815031920,8.41,128.1,128.01,1.2897]
[1725815032120,8.41,128.1,128.04,8.41]
[1725815032121,12.41329046,128.1,128.04,8.41]
[1725815032724,3.1238,128.06,128.04,8.41]
[1725815033724,1.3662,128.14,128.05,8.41]
[1725815033929,0.2870576,128.13,128.08,8.41]
[1725815034119,3.1229,128.09,128.07,8.41]
[1725815035122,3.1227,128.1,128.07,8.41]
[1725815035326,23.45,128.21,128.09,8.41]
[1725815035628,3.1219,128.13,128.11,8.41]
[1725815036026,3.1219,128.13,128.08,3.123]
[1725815036027,3.1219,128.13,128.1,8.41]
[1725815036229,3.96313364,128.14,128.1,8.41]
[1725815036424,8.41,128.16,128.1,8.41]
[1725815036925,3.1224,128.12,128.1,8.41]
[1725815037124,8.41,128.14,128.06,1.3358]
[1725815037327,8.41,128.13,128.07,8.41]
[1725815038136,3.1226,128.11,128.07,8.41]
[1725815038332,1.3016,128.19,128.1,8.41]
[1725815038523,10.08997804,128.18,128.12,8.41]
[1725815038724,13.72368244,128.18,128.12,8.41]
[1725815038930,0.28697794,128.17,128.12,8.41]
[1725815039130,13.72368244,128.18,128.12,8.41]
[1725815039335,0.2869779,128.17,128.12,8.41]
[1725815039536,13.72368244,128.18,128.12,8.41]
[1725815039733,0.28696819,128.17,128.12,8.41]
[1725815040032,3.1217,128.15,128.12,8.41]
[1725815041029,13.72368244,128.18,128.12,8.41]
[1725815041234,3.1217,128.14,128.12,8.41]
[1725815046346,5.31368244,128.18,128.12,8.41]
[1725815046542,0.2869624,128.17,128.13,8.41]
[1725815046943,3.1214,128.16,128.13,8.41]
[1725815049554,5.31368244,128.18,128.13,8.41]
[1725815049555,3.1215,128.15,128.13,8.41]
[1725815050651,3.1213,128.16,128.13,8.41]
[1725815053254,3.1213,128.16,128.14,8.41]
[1725815054253,5.31368244,128.18,128.14,8.41]
[1725815054452,3.92068244,128.18,128.16,8.41]
[1725815054649,2.4008,128.22,128.17,8.41]
[1725815054957,0.28691245,128.21,128.17,8.41]
[1725815055359,3.1207,128.19,128.17,8.41]
[1725815055557,1.3777,128.22,128.17,8.41]
[1725815055758,0.28690937,128.21,128.17,8.41]
[1725815056457,3.121,128.17,128.16,8.41]
[1725815056663,3.40790937,128.17,128.16,8.41]
[1725815058152,3.40790943,128.17,128.16,8.41]
[1725815058355,3.1216,128.15,128.13,1.3325]
[1725815058655,3.1216,128.15,128.14,8.41]
[1725815066158,3.1216,128.15,128.13,1.3325]
[1725815066159,3.1217,128.14,128.13,1.3325]
[1725815066470,3.81262681,128.17,128.13,8.41]
[1725815066664,8.41,128.19,128.13,8.41]
[1725815066861,0.28693295,128.18,128.13,8.41]
[1725815067058,3.87544872,128.17,128.13,8.41]
[1725815067469,3.1217,128.14,128.13,8.41]
[1725815080980,3.1215,128.15,128.13,8.41]
[1725815081169,9.7877,128.22,128.14,8.41]
[1725815081368,0.28691705,128.21,128.16,8.41]
[1725815082166,8.69691705,128.21,128.16,8.41]
[1725815082476,3.121,128.17,128.16,8.41]
[1725815085872,3.40792639,128.17,128.16,8.41]
[1725815086677,3.40792477,128.17,128.16,8.41]
[1725815087376,3.1215,128.15,128.13,1.3081]
[1725815087577,3.1215,128.15,128.14,8.41]
[1725815098084,3.1217,128.14,128.13,1.3081]
[1725815098285,3.1217,128.14,128.13,9.7181]
[1725815098695,3.1217,128.14,128.12,1.3186]
[1725815098696,3.1219,128.13,128.12,1.3186]
[1725815098992,3.1219,128.13,128.11,3.95550351]
[1725815098993,8.41,128.15,128.11,3.95550351]
[1725815099181,8.41,128.15,128.1,8.41]
[1725815099380,3.1224,128.11,128.1,8.41]
[1725815100893,3.1223,128.12,128.1,8.41]
[1725815101192,2.6616,128.17,128.11,8.41]
[1725815101387,3.87696151,128.16,128.13,8.41]
[1725815101582,3.1217,128.14,128.13,8.41]
[1725815105891,3.1223,128.12,128.11,8.41]
[1725815115498,3.1223,128.12,128.11,12.32022704]
[1725815115996,3.1227,128.1,128.09,1.3434]
[1725815116192,8.41,128.12,128.06,8.41]
[1725815116390,1.3827,128.16,128.04,159.72416754]
[1725815116391,8.41,128.1,128.04,159.72416754]
[1725815116704,8.41,128.09,128.01,3.89070909]
[1725815116991,8.41,128.09,127.99,3.95367911]
[1725815116992,8.41,128.08,127.99,3.95367911]
[1725815117196,3.1247,128.02,128.01,8.41]
[1725815122096,5.31177358,128.09,128.01,8.41]
[1725815122293,5.31177358,128.09,127.99,3.84275894]
[1725815122294,13.72177358,128.09,128.03,8.41]
[1725815122496,13.72177358,128.09,127.99,3.84275894]
[1725815122497,5.31177358,128.09,128.04,8.41]
[1725815122686,2.2776,128.11,128.06,8.41]
[1725815122891,3.83914647,128.1,128.06,8.41]
[1725815123089,2.2776,128.11,128.07,8.41]
[1725815123293,5.25346821,128.11,128.07,8.41]
[1725815123492,3.1231,128.09,128.07,8.41]
[1725815123692,1.2776,128.11,128.07,8.41]
[1725815123892,5.27096196,128.11,128.07,8.41]
[1725815124089,1.2776,128.11,128.07,8.41]
[1725815124691,5.16475345,128.11,128.07,8.41]
[1725815125001,3.1231,128.09,128.07,8.41]
[1725815125196,5.16475345,128.11,128.06,8.41]
[1725815125400,13.57475345,128.11,128.06,8.41]
[1725815125991,13.57475345,128.11,128.04,8.41]
[1725815126200,26.14475345,128.11,128.03,20.98]
[1725815126399,3.1234,128.07,128.03,20.98]
[1725815129392,3.1234,128.07,128.05,20.98]
[1725815129602,1.2776,128.11,128.06,20.98]
[1725815130403,3.1231,128.09,128.06,20.98]
[1725815131402,3.1228,128.1,128.06,24.1036]
[1725815131807,1.2776,128.11,128.06,24.1036]
[1725815132303,3.1227,128.1,128.06,24.1036]
[1725815134408,3.1229,128.09,128.06,24.1036]
[1725815135603,3.1229,128.09,128.05,24.1038]
[1725815139106,3.1228,128.1,128.06,20.98]
[1725815139301,5.35384057,128.15,128.08,20.98]
[1725815139612,3.1222,128.12,128.09,3.90090582]
[1725815139905,1.3744,128.16,128.11,20.98]
[1725815140105,1.3744,128.16,128.11,24.85297001]
[1725815140897,1.3744,128.16,128.11,20.98]
[1725815141101,3.1216,128.15,128.11,24.1023]
[1725815142210,3.1217,128.14,128.11,20.98]
[1725815147811,3.98493599,128.15,128.1,24.93416926]
[1725815148009,3.98493599,128.15,128.1,20.98]
[1725815148514,3.1221,128.13,128.1,20.98]
[1725815151205,11.85394068,128.22,128.12,20.98]
[1725815151405,11.85394068,128.22,128.12,162.94342804]
[1725815151406,0.28692162,128.21,128.12,162.94342804]
[1725815151605,0.28692162,128.21,128.16,20.98]
[1725815151904,2.7794,128.24,128.16,20.98]
[1725815152104,0.28689551,128.23,128.16,20.98]
[1725815152811,3.1204,128.2,128.16,20.98]
[1725815153016,20.98,128.22,128.15,1.3671]
[1725815153208,0.28688387,128.21,128.15,1.3671]
[1725815153610,3.1206,128.19,128.15,1.3671]
[1725815156922,3.1206,128.19,128.15,4.4885]
[1725815157107,3.1206,128.19,128.16,20.98]
[1725815159820,20.98,128.23,128.16,20.98]
[1725815160021,0.28688749,128.22,128.16,20.98]
[1725815161026,3.1204,128.2,128.16,20.98]
[1725815162318,3.1204,128.2,128.15,4.4885]
[1725815162621,3.1204,128.2,128.17,8.39]
[1725815162811,8.39,128.23,128.15,1.3671]
[1725815163017,8.39,128.19,128.13,1.3082]
[1725815163213,8.676887,128.18,128.13,9.6982]
[1725815163420,0.28693669,128.17,128.13,1.3082]
[1725815163621,3.97347573,128.16,128.13,1.3082]
[1725815163825,9.6643,128.18,128.12,8.39]
[1725815164025,0.28695672,128.17,128.12,8.39]
[1725815164521,3.85953534,128.17,128.12,8.39]
[1725815164917,3.1216,128.15,128.12,8.39]
[1725815165520,3.1213,128.16,128.13,8.39]
[1725815166219,3.1213,128.16,128.12,20.99]
[1725815167123,3.1215,128.15,128.12,20.99]
[1725815168024,3.1217,128.14,128.12,20.99]
[1725815171329,3.1217,128.14,128.1,22.2982]
[1725815171736,24.79685743,128.18,128.1,22.2982]
[1725815172625,0.28696522,128.17,128.1,22.2982]
[1725815172831,21.27696522,128.17,128.1,1.3082]
[1725815173026,1.3048,128.16,128.1,1.3082]
[1725815173234,3.1223,128.12,128.1,1.3082]
[1725815173534,3.1223,128.12,128.09,1.3538]
[1725815173723,1.3048,128.16,128.05,20.99]
[1725815173724,3.1231,128.09,128.05,20.99]
[1725815174435,20.99,128.11,128.04,2.6517]
[1725815175120,3.1236,128.07,128.04,2.6517]
[1725815175322,3.83576613,128.09,128.04,2.6517]
[1725815175526,1.359,128.1,128.04,2.6517]
[1725815175733,1.359,128.1,128.05,20.99]
[1725815175929,1.2734,128.14,128.06,20.99]
[1725815176429,3.1228,128.1,128.06,20.99]
[1725815176731,22.2634,128.14,128.06,20.99]
[1725815177734,3.1229,128.09,128.06,20.99]
[1725815177930,1.2734,128.14,128.06,20.99]
[1725815178336,3.1226,128.11,128.06,20.99]
[1725815178638,1.2734,128.14,128.06,20.99]
[1725815180043,3.1227,128.1,128.06,20.99]
[1725815181342,3.1225,128.11,128.08,20.99]
[1725815181537,1.359,128.15,128.08,20.99]
[1725815181935,3.1224,128.12,128.08,20.99]
[1725815182436,3.1225,128.11,128.08,20.99]
[1725815186442,22.349,128.15,128.06,24.1136]
[1725815186647,0.28702046,128.14,128.06,20.99]
[1725815187147,3.1228,128.1,128.06,20.99]
[1725815187948,3.1228,128.1,128.06,24.1136]
[1725815192855,3.123,128.09,128.06,20.99]
[1725815195754,20.99,128.14,128.05,20.99]
[1725815195755,44.44,128.14,128.05,20.99]
[1725815195950,20.99,128.12,128.05,20.99]
[1725815196153,8.39,128.11,128.05,8.39]
[1725815197355,3.1234,128.08,128.05,8.39]
[1725815198555,3.1234,128.07,128.06,8.39]
[1725815203060,3.1233,128.08,128.06,8.39]
[1725815209266,3.1233,128.08,128.04,7.0594]
[1725815209564,3.1233,128.08,128.06,8.39]
[1725815215671,8.39,128.11,128.06,8.39]
[1725815215972,23.45,128.13,128.05,8.39]
[1725815215973,8.39,128.1,128.05,8.39]
[1725815216470,3.1235,128.07,128.05,8.39]
[1725815222077,3.1227,128.1,128.06,8.39]
[1725815222371,8.39,128.14,128.08,8.39]
[1725815222569,12.21991179,128.16,128.09,8.39]
[1725815222775,12.21991179,128.16,128.11,8.39]
[1725815222973,3.1217,128.14,128.12,8.39]
[1725815223781,1.3677,128.19,128.13,8.39]
[1725815223974,3.96907216,128.18,128.13,8.39]
[1725815224173,3.1214,128.16,128.13,8.39]
[1725815224477,1.3677,128.19,128.15,8.39]
[1725815224777,3.87175772,128.18,128.15,8.39]
[1725815224966,3.1211,128.17,128.15,8.39]
[1725815225577,3.1212,128.16,128.14,8.39]
[1725815226373,3.121,128.17,128.14,8.39]
[1725815227581,3.121,128.17,128.15,8.39]
[1725815231875,3.1212,128.16,128.15,8.39]
[1725815234283,3.1211,128.17,128.15,8.39]
[1725815234882,3.1208,128.18,128.15,8.39]
[1725815235181,114.25701524,128.22,128.15,8.39]
[1725815235385,0.28690259,128.21,128.15,8.39]
[1725815235574,4.18450658,128.21,128.15,8.39]
[1725815235778,3.1206,128.19,128.15,8.39]
[1725815236783,3.1206,128.19,128.16,8.39]
[1725815240079,3.1207,128.18,128.16,8.39]
[1725815243084,3.1206,128.19,128.17,8.39]
[1725815249993,3.1208,128.18,128.16,8.39]
[1725815258996,3.1208,128.18,128.15,1.3349]
[1725815258997,30.30651891,128.32,128.17,8.39]
[1725815259194,8.67681898,128.31,128.15,1.3349]
[1725815259397,0.28681898,128.3,128.24,8.39]
[1725815259591,3.1187,128.27,128.24,8.39]
[1725815260199,11.0734,128.31,128.24,8.39]
[1725815260399,0.28668515,128.3,128.24,8.39]
[1725815261101,11.0734,128.31,128.24,8.39]
[1725815261102,3.1185,128.28,128.24,8.39]
[1725815262206,11.0734,128.31,128.24,8.39]
[1725815262502,0.2866811,128.3,128.24,8.39]
[1725815263299,0.2866811,128.3,128.26,8.39]
[1725815263300,3.1181,128.29,128.26,8.39]
[1725815263599,2.6834,128.31,128.26,8.39]
[1725815263805,1.3793,128.31,128.26,8.39]
[1725815264102,3.1183,128.29,128.26,8.39]
[1725815264807,3.1178,128.3,128.27,8.39]
[1725815265305,3.1175,128.32,128.29,8.39]
[1725815265496,1.0222,128.34,128.23,4.0139]
[1725815265497,3.81657958,128.33,128.23,4.0139]
[1725815265693,9.4122,128.34,128.28,8.39]
[1725815265897,3.1177,128.31,128.28,8.39]
[1725815266302,12.24830148,128.34,128.28,8.39]
[1725815266899,3.1177,128.31,128.28,8.39]
[1725815267893,111.91922021,128.38,128.28,8.39]
[1725815268099,1.55179228,128.37,128.31,8.39]
[1725815268304,0.28659228,128.36,128.31,8.39]
[1725815268504,3.1173,128.32,128.31,8.39]
[1725815269103,3.1176,128.31,128.26,3.1187]
[1725815269302,3.1176,128.31,128.28,8.39]
[1725815275622,8.39,128.32,128.23,4.0139]
[1725815275915,2.7424,128.35,128.27,8.39]
[1725815276120,3.1179,128.3,128.28,8.39]
[1725815278520,3.118,128.29,128.27,8.39]
[1725815279310,2.7424,128.35,128.28,8.39]
[1725815279509,0.28659311,128.34,128.3,8.39]
[1725815279710,38.493596,128.35,128.29,8.39]
[1725815279910,0.28660134,128.34,128.23,7.91370514]
[1725815280119,0.28660134,128.34,128.28,8.39]
[1725815280322,8.67660134,128.34,128.28,8.39]
[1725815280521,8.39,128.34,128.28,8.39]
[1725815280922,8.39,128.34,128.23,7.91370514]
[1725815281222,30.103596,128.35,128.23,7.91370514]
[1725815281223,8.676618,128.33,128.26,8.39]
[1725815281522,1.3535,128.32,128.26,8.39]
[1725815281910,3.1182,128.29,128.26,8.39]
[1725815282621,3.1178,128.3,128.28,8.39]
[1725815283916,1.3535,128.32,128.24,3.1192]
[1725815284122,1.3535,128.32,128.29,8.39]
[1725815284521,3.1177,128.31,128.29,8.39]
[1725815285523,3.1178,128.3,128.28,8.39]
[1725815287428,3.1178,128.3,128.29,8.39]
[1725815289016,3.1178,128.3,128.25,3.1189]
[1725815289219,3.1178,128.3,128.28,8.39]
[1725815289820,3.118,128.29,128.28,8.39]
[1725815290020,38.493596,128.35,128.28,8.39]
[1725815290228,0.28659167,128.34,128.29,8.39]
[1725815291025,38.493596,128.35,128.29,8.39]
[1725815291219,0.28658856,128.34,128.29,8.39]
[1725815292122,38.493596,128.35,128.29,8.39]
[1725815292326,0.28659323,128.34,128.29,8.39]
[1725815293029,3.1178,128.31,128.29,8.39]
[1725815297826,31.84,128.34,128.28,8.39]
[1725815298127,0.28658336,128.33,128.28,8.39]
[1725815298431,3.118,128.3,128.28,8.39]
[1725815300126,3.118,128.3,128.25,3.1189]
[1725815300326,3.1181,128.29,128.28,8.39]
[1725815301536,3.1179,128.3,128.28,8.39]
[1725815301733,3.1179,128.3,128.29,8.39]
[1725815303634,3.1179,128.3,128.29,10.75]
[1725815306140,3.1179,128.3,128.29,2.36]
[1725815311542,26.5179,128.3,128.29,0.2555]
[1725815312648,34.9079,128.3,128.29,0.2555]
[1725815312841,3.1188,128.26,128.24,8.39]
[1725815313440,3.1188,128.26,128.22,3.1196]
[1725815313441,31.79,128.27,128.16,1.3895]
[1725815313739,31.79,128.27,128.21,8.39]
[1725815313946,31.79,128.26,128.21,8.39]
[1725815314151,31.79,128.26,128.18,3.95266848]
[1725815314448,3.1199,128.22,128.2,8.39]
[1725815315252,1.2865,128.28,128.21,8.39]
[1725815315446,31.79,128.27,128.21,8.39]
[1725815315754,3.82830173,128.28,128.23,8.39]
[1725815316052,3.1192,128.25,128.23,8.39]
[1725815316347,12.339216,128.26,128.18,3.95266848]
[1725815316544,3.1199,128.22,128.2,8.39]
[1725815316745,31.79,128.25,128.19,8.39]
[1725815317258,8.39,128.22,128.17,2.636]
[1725815318450,3.1204,128.2,128.17,2.636]
[1725815319858,3.12,128.21,128.19,8.39]
[1725815326245,3.1198,128.22,128.17,7.0529]
[1725815326553,3.1198,128.22,128.2,8.39]
[1725815328245,24.7478,128.28,128.21,8.39]
[1725815328452,37.02569202,128.28,128.21,8.39]
[1725815328749,32.07673003,128.27,128.21,8.39]
[1725815328951,3.1195,128.23,128.21,8.39]
[1725815329350,14.94839202,128.28,128.21,8.39]
[1725815329552,3.1192,128.25,128.23,8.39]
[1725815332750,28.61059202,128.28,128.23,8.39]
[1725815333459,28.61059202,128.28,128.22,8.39]
[1725815333655,3.1193,128.24,128.22,8.39]
[1725815333854,31.79,128.27,128.21,8.39]
[1725815334052,8.39,128.26,128.21,8.39]
[1725815334454,3.1195,128.24,128.21,8.39]
[1725815334855,8.39,128.26,128.21,8.39]
[1725815335058,3.1195,128.24,128.21,8.39]
[1725815336362,3.1196,128.23,128.21,8.39]
[1725815337159,8.39,128.23,128.18,8.39]
[1725815337356,8.39,128.23,128.17,12.322]
[1725815337550,3.1204,128.2,128.17,12.322]
[1725815339064,3.1205,128.19,128.17,12.322]
[1725815339260,8.39,128.22,128.17,9.6585]
[1725815339560,3.8826053,128.21,128.17,8.39]
[1725815340262,3.1207,128.18,128.17,8.39]
[1725815341660,3.8826053,128.21,128.15,8.39]
[1725815341661,3.1211,128.17,128.15,8.39]
[1725815341867,8.39,128.19,128.12,4.0039]
[1725815342057,8.39,128.19,128.13,8.39]
[1725815342456,3.1214,128.16,128.13,8.39]
[1725815343365,5.2548053,128.21,128.15,8.39]
[1725815343563,3.8826053,128.21,128.17,8.39]
[1725815343959,3.1207,128.19,128.17,8.39]
[1725815345268,3.1203,128.2,128.18,8.39]
[1725815346065,3.1203,128.2,128.17,20.97]
[1725815346455,20.97,128.25,128.17,20.97]
[1725815346668,0.28679779,128.24,128.17,20.97]
[1725815347267,3.1202,128.21,128.17,20.97]
[1725815348267,44.37,128.25,128.17,20.97]
[1725815348268,3.1202,128.2,128.17,20.97]
[1725815352478,3.1205,128.19,128.15,20.97]
[1725815353379,3.1208,128.18,128.15,20.97]
[1725815353680,3.86166809,128.21,128.13,20.97]
[1725815353981,3.1211,128.17,128.13,20.97]
[1725815354487,3.87250312,128.21,128.13,20.97]
[1725815354677,45.7098,128.22,128.13,20.97]
[1725815355079,3.1211,128.17,128.13,20.97]
[1725815356277,3.1212,128.16,128.13,20.97]
[1725815362687,3.1215,128.15,128.13,20.97]
[1725815364892,3.1215,128.15,128.12,24.9739]
[1725815365189,24.93246293,128.19,128.12,23.6128]
[1725815365388,20.97,128.19,128.12,23.6128]
[1725815365583,3.87583892,128.18,128.12,23.6128]
[1725815365780,23.4,128.21,128.12,23.6128]
[1725815365984,48.26105665,128.21,128.13,20.97]
[1725815366292,48.26105665,128.21,128.14,8.39]
[1725815366293,8.39,128.2,128.14,8.39]
[1725815366496,8.39,128.2,128.12,5.7648]
[1725815366701,8.39,128.19,128.13,8.39]
[1725815366893,3.96737433,128.2,128.14,8.39]
[1725815367192,8.39,128.2,128.14,8.39]
[1725815367393,3.86278488,128.19,128.14,8.39]
[1725815368299,3.1212,128.17,128.14,8.39]
[1725815368894,3.1212,128.16,128.14,8.39]
[1725815369800,3.93818777,128.21,128.15,8.39]
[1725815370001,3.93818777,128.21,128.17,8.39]
[1725815370595,3.1203,128.2,128.17,8.39]
[1725815374995,3.1206,128.19,128.15,11.5114]
[1725815377707,1.2641,128.23,128.17,8.39]
[1725815377897,4.0039,128.27,128.21,8.39]
[1725815378097,12.3939,128.27,128.22,8.39]
[1725815378999,3.1193,128.24,128.22,8.39]
[1725815379602,3.1191,128.25,128.22,8.39]
[1725815379796,12.3939,128.27,128.22,8.39]
[1725815380204,3.119,128.25,128.2,24.0802]
[1725815380804,3.1193,128.24,128.2,24.0802]
[1725815381008,3.1193,128.24,128.2,20.96]
[1725815385012,3.1193,128.24,128.2,24.0801]
[1725815385708,3.1193,128.24,128.2,25.4501]
[1725815389115,1.303,128.27,128.2,22.33]
[1725815389408,1.303,128.27,128.2,25.0578]
[1725815390508,3.1192,128.25,128.2,28.1779]
[1725815391008,1.303,128.27,128.2,28.1779]
[1725815391207,3.119,128.25,128.2,28.1779]
[1725815391808,23.4,128.26,128.2,4.0978]
[1725815392020,23.4,128.26,128.18,3.96919563]
[1725815392511,23.4,128.26,128.18,7.08989563]
[1725815392816,23.4,128.26,128.18,3.96919563]
[1725815393509,3.12,128.22,128.18,3.96919563]
[1725815394316,3.12,128.22,128.18,7.08989563]
[1725815394817,23.4,128.26,128.18,3.96919563]
[1725815395021,23.4,128.26,128.17,24.0809]
[1725815395315,23.4,128.26,128.17,20.96]
[1725815395517,23.4,128.26,128.18,3.83376238]
[1725815397317,3.12,128.22,128.18,3.83376238]
[1725815398114,23.4,128.26,128.17,24.0809]
[1725815398115,3.12,128.21,128.17,24.0809]
[1725815398518,3.12,128.21,128.18,3.84468367]
[1725815400321,3.12,128.21,128.19,8.39]
[1725815401020,31.79,128.25,128.19,8.39]
[1725815401616,8.39,128.23,128.14,4.1057]
[1725815401821,8.39,128.22,128.14,4.1057]
[1725815402125,3.1205,128.19,128.16,8.39]
[1725815403017,8.39,128.24,128.18,8.39]
[1725815403215,12.2949,128.27,128.21,8.39]
[1725815403415,0.28675372,128.26,128.21,8.39]
[1725815403621,3.1197,128.23,128.21,8.39]
[1725815404017,1.303,128.27,128.22,8.39]
[1725815404218,3.1192,128.25,128.23,8.39]
[1725815405021,3.1193,128.24,128.23,8.39]
[1725815408126,3.1193,128.24,128.22,8.39]
[1725815413431,33.093,128.27,128.2,4.0617]
[1725815413635,3.1195,128.23,128.2,4.0617]
[1725815413828,3.1195,128.23,128.22,8.39]
[1725815416642,3.1195,128.23,128.21,8.39]
[1725815418136,3.1197,128.22,128.21,8.39]
[1725815419342,3.1197,128.22,128.2,1.3842]
[1725815419737,3.1197,128.22,128.19,12.31495166]
[1725815420343,8.39,128.22,128.16,11.5111]
[1725815420939,3.1204,128.2,128.16,11.5111]
[1725815421141,8.39,128.22,128.16,8.39]
[1725815422245,3.1204,128.2,128.16,8.39]
[1725815422637,8.39,128.22,128.16,8.39]
[1725815422844,3.89686335,128.21,128.16,8.39]
[1725815424344,3.1206,128.19,128.16,8.39]
[1725815431146,3.1203,128.2,128.17,8.39]
[1725815435053,3.1206,128.19,128.15,3.1214]
[1725815435245,3.97246555,128.21,128.16,8.39]
[1725815435443,8.39,128.21,128.16,8.39]
[1725815435755,12.27000097,128.21,128.16,8.39]
[1725815437455,3.1206,128.19,128.16,8.39]
[1725815439360,3.1209,128.18,128.16,8.39]
[1725815444558,3.1209,128.18,128.15,3.1214]
[1725815444759,3.1209,128.18,128.13,1.3285]
[1725815444760,8.39,128.2,128.13,1.3285]
[1725815445066,8.39,128.2,128.14,8.39]
[1725815445859,3.1212,128.17,128.14,8.39]
[1725815447163,3.1212,128.16,128.14,8.39]
[1725815448569,3.121,128.17,128.14,8.39]
[1725815449176,1.3258,128.22,128.15,8.39]
[1725815449473,31.79,128.26,128.2,8.39]
[1725815449862,3.1197,128.23,128.2,8.39]
[1725815450267,31.79,128.26,128.2,8.39]
[1725815451172,8.39,128.26,128.2,8.39]
[1725815451373,2.6362,128.27,128.21,8.39]
[1725815451574,2.6362,128.27,128.18,3.82042258]
[1725815451575,1.3491,128.27,128.23,8.39]
[1725815452471,3.119,128.26,128.23,8.39]
[1725815452968,7.00629202,128.28,128.23,11.5094]
[1725815453176,1.2649,128.29,128.24,8.39]
[1725815453376,2.5517,128.3,128.24,8.39]
[1725815454372,3.1182,128.29,128.24,11.5092]